[Event "*** Titled Tuesday Blitz"]
[Site "Chess.com"]
[Date "2020.04.28"]
[Round "3"]
[White "KaterinaMiroshnik"]
[Black "goofypenguin96"]
[Result "1-0"]
[WhiteElo "2400"]
[BlackElo "2159"]
[TimeControl "180+1"]
[EndTime "10:29:24 PDT"]
[Termination "KaterinaMiroshnik won by checkmate"]

1. d4 {[%clk 0:03:00.9]} 1... c6 {[%clk 0:02:52.7]} 2. c4 {[%clk 0:03:00.1]}
2... d5 {[%clk 0:02:53.6]} 3. e3 {[%clk 0:02:58.9]} 3... Nf6 {[%clk 0:02:53.2]}
4. Nf3 {[%clk 0:02:58.8]} 4... Bf5 {[%clk 0:02:52.5]} 5. Bd3 {[%clk 0:02:58.2]}
5... Bxd3 {[%clk 0:02:42.5]} 6. Qxd3 {[%clk 0:02:59.1]} 6... e6 {[%clk
0:02:43.4]} 7. O-O {[%clk 0:02:58.4]} 7... Bd6 {[%clk 0:02:42.8]} 8. Nc3 {[%clk
0:02:58.2]} 8... Nbd7 {[%clk 0:02:42.4]} 9. e4 {[%clk 0:02:57.5]} 9... dxe4
{[%clk 0:02:42.4]} 10. Nxe4 {[%clk 0:02:58.4]} 10... Nxe4 {[%clk 0:02:43.3]} 11.
Qxe4 {[%clk 0:02:58.7]} 11... Nf6 {[%clk 0:02:44.2]} 12. Qe2 {[%clk 0:02:59.4]}
12... O-O {[%clk 0:02:42.8]} 13. b3 {[%clk 0:02:59.9]} 13... c5 {[%clk
0:02:39.8]} 14. Bb2 {[%clk 0:03:00.8]} 14... Qe7 {[%clk 0:02:27.9]} 15. Rad1
{[%clk 0:02:59.1]} 15... Rfd8 {[%clk 0:02:27.1]} 16. dxc5 {[%clk 0:02:42.8]}
16... Bxc5 {[%clk 0:02:28]} 17. Ne5 {[%clk 0:02:43.3]} 17... Rxd1 {[%clk
0:02:23.7]} 18. Rxd1 {[%clk 0:02:44.2]} 18... Rd8 {[%clk 0:02:24.1]} 19. h3
{[%clk 0:02:40.5]} 19... h6 {[%clk 0:02:22.3]} 20. Rd2 {[%clk 0:02:32.3]} 20...
Bb4 {[%clk 0:02:18.6]} 21. Rxd8+ {[%clk 0:02:27.8]} 21... Qxd8 {[%clk
0:02:19.5]} 22. Qd3 {[%clk 0:02:28.2]} 22... Qxd3 {[%clk 0:02:14.1]} 23. Nxd3
{[%clk 0:02:29.1]} 23... Bd6 {[%clk 0:02:12.7]} 24. Bd4 {[%clk 0:02:28.2]} 24...
a6 {[%clk 0:02:11]} 25. b4 {[%clk 0:02:26.7]} 25... Nd7 {[%clk 0:02:00.7]} 26.
Kf1 {[%clk 0:02:20.3]} 26... e5 {[%clk 0:02:00.3]} 27. Bc3 {[%clk 0:02:20.3]}
27... f5 {[%clk 0:01:59.1]} 28. Ke2 {[%clk 0:02:19.3]} 28... Kf7 {[%clk
0:01:58.4]} 29. c5 {[%clk 0:02:19.2]} 29... Bc7 {[%clk 0:01:56.5]} 30. Nb2
{[%clk 0:02:20.1]} 30... Ke6 {[%clk 0:01:51.4]} 31. Nc4 {[%clk 0:02:20.3]} 31...
g5 {[%clk 0:01:46]} 32. f3 {[%clk 0:02:16.6]} 32... h5 {[%clk 0:01:43.4]} 33.
Bd2 {[%clk 0:02:15.1]} 33... g4 {[%clk 0:01:36.4]} 34. hxg4 {[%clk 0:02:10.8]}
34... fxg4 {[%clk 0:01:35.7]} 35. fxg4 {[%clk 0:02:11.7]} 35... hxg4 {[%clk
0:01:36.6]} 36. Kd3 {[%clk 0:02:11.3]} 36... Nf6 {[%clk 0:01:30.2]} 37. Ne3
{[%clk 0:02:09.6]} 37... e4+ {[%clk 0:01:27.2]} 38. Kc4 {[%clk 0:02:07.7]} 38...
Bf4 {[%clk 0:01:24.5]} 39. a4 {[%clk 0:01:58.9]} 39... Bxe3 {[%clk 0:00:57.3]}
40. Bxe3 {[%clk 0:01:59.8]} 40... Nd5 {[%clk 0:00:58.2]} 41. Bd4 {[%clk
0:01:58.8]} 41... Nf4 {[%clk 0:00:55.8]} 42. g3 {[%clk 0:01:56.4]} 42... Ne2
{[%clk 0:00:21.7]} 43. Bf2 {[%clk 0:01:54]} 43... Ke5 {[%clk 0:00:21.7]} 44. b5
{[%clk 0:01:23.9]} 44... axb5+ {[%clk 0:00:22.6]} 45. axb5 {[%clk 0:01:14.2]}
45... e3 {[%clk 0:00:18.2]} 46. Be1 {[%clk 0:01:02.2]} 46... Ke4 {[%clk
0:00:14.7]} 47. c6 {[%clk 0:00:59.6]} 47... bxc6 {[%clk 0:00:14.5]} 48. b6
{[%clk 0:00:58.8]} 48... Nd4 {[%clk 0:00:10.5]} 49. b7 {[%clk 0:00:55.9]} 49...
Nc2 {[%clk 0:00:10.2]} 50. b8=Q {[%clk 0:00:53.5]} 50... Nxe1 {[%clk 0:00:10]}
51. Qf4# {[%clk 0:00:49.6]} 1-0

[Event "*** Titled Tuesday Blitz"]
[Site "Chess.com"]
[Date "2020.04.28"]
[Round "3"]
[White "tteshan"]
[Black "TomasKapitanchuk"]
[Result "1-0"]
[WhiteElo "2245"]
[BlackElo "2443"]
[TimeControl "180+1"]
[EndTime "10:29:24 PDT"]
[Termination "tteshan won on time"]

1. d4 {[%clk 0:03:00.9]} 1... Nf6 {[%clk 0:02:58]} 2. c4 {[%clk 0:02:59.4]} 2...
c5 {[%clk 0:02:58.5]} 3. d5 {[%clk 0:02:59.3]} 3... e6 {[%clk 0:02:57.5]} 4. Nc3
{[%clk 0:02:55.7]} 4... exd5 {[%clk 0:02:58.4]} 5. cxd5 {[%clk 0:02:55.3]} 5...
d6 {[%clk 0:02:58.8]} 6. e4 {[%clk 0:02:54.3]} 6... g6 {[%clk 0:02:58.3]} 7. Nf3
{[%clk 0:02:51.7]} 7... Bg7 {[%clk 0:02:52.1]} 8. Bd3 {[%clk 0:02:39.9]} 8... a6
{[%clk 0:02:50.3]} 9. a4 {[%clk 0:02:39.2]} 9... Bg4 {[%clk 0:02:49.9]} 10. O-O
{[%clk 0:02:37.9]} 10... O-O {[%clk 0:02:46.8]} 11. h3 {[%clk 0:02:36.7]} 11...
Bxf3 {[%clk 0:02:46.6]} 12. Qxf3 {[%clk 0:02:35.8]} 12... Nbd7 {[%clk
0:02:47.5]} 13. Bf4 {[%clk 0:02:33.1]} 13... Qe7 {[%clk 0:02:45.8]} 14. Rfe1
{[%clk 0:02:28.3]} 14... Nh5 {[%clk 0:02:39.5]} 15. Bh2 {[%clk 0:02:21.7]} 15...
Be5 {[%clk 0:02:38.9]} 16. Bc2 {[%clk 0:01:56]} 16... Bxh2+ {[%clk 0:02:35.2]}
17. Kxh2 {[%clk 0:01:56.9]} 17... Ne5 {[%clk 0:02:35.5]} 18. Qe2 {[%clk
0:01:52.9]} 18... Rae8 {[%clk 0:01:55.1]} 19. g3 {[%clk 0:01:49.3]} 19... Nd7
{[%clk 0:01:39.5]} 20. Qg4 {[%clk 0:01:36.5]} 20... Qf6 {[%clk 0:01:26.1]} 21.
f4 {[%clk 0:01:22.6]} 21... Ne5 {[%clk 0:01:12.6]} 22. Qe2 {[%clk 0:01:14.2]}
22... Nxf4 {[%clk 0:01:08.8]} 23. gxf4 {[%clk 0:01:09.8]} 23... Qxf4+ {[%clk
0:01:09.7]} 24. Kh1 {[%clk 0:01:05.8]} 24... Qh4 {[%clk 0:00:47.9]} 25. Qg2
{[%clk 0:00:53.6]} 25... Nc4 {[%clk 0:00:40.9]} 26. b3 {[%clk 0:00:43.2]} 26...
Ne5 {[%clk 0:00:38.4]} 27. Re3 {[%clk 0:00:38.9]} 27... g5 {[%clk 0:00:27.5]}
28. Rg1 {[%clk 0:00:21.2]} 28... h6 {[%clk 0:00:27.1]} 29. Ne2 {[%clk
0:00:19.1]} 29... Ng6 {[%clk 0:00:24.7]} 30. Ng3 {[%clk 0:00:18.6]} 30... Nf4
{[%clk 0:00:24.7]} 31. Qh2 {[%clk 0:00:15.1]} 31... Nxh3 {[%clk 0:00:22.2]} 32.
Nf5 {[%clk 0:00:14.7]} 32... Nf2+ {[%clk 0:00:06.8]} 33. Kg2 {[%clk 0:00:14.5]}
33... Qxh2+ {[%clk 0:00:05.9]} 34. Kxh2 {[%clk 0:00:14.7]} 34... Kh7 {[%clk
0:00:02.5]} 35. Kg2 {[%clk 0:00:14.5]} 35... Ng4 {[%clk 0:00:01.7]} 36. Rg3
{[%clk 0:00:13.8]} 1-0

[Event "*** Titled Tuesday Blitz"]
[Site "Chess.com"]
[Date "2020.04.28"]
[Round "3"]
[White "northridgehawk"]
[Black "BillCoe"]
[Result "1-0"]
[WhiteElo "2304"]
[BlackElo "2060"]
[TimeControl "180+1"]
[EndTime "10:29:25 PDT"]
[Termination "northridgehawk won on time"]

1. e4 {[%clk 0:03:00.9]} 1... c5 {[%clk 0:02:59.3]} 2. Nf3 {[%clk 0:02:34.5]}
2... e6 {[%clk 0:02:57.6]} 3. d4 {[%clk 0:02:31.6]} 3... cxd4 {[%clk 0:02:56.7]}
4. Nxd4 {[%clk 0:02:30.3]} 4... a6 {[%clk 0:02:56.8]} 5. c4 {[%clk 0:02:21.7]}
5... Qc7 {[%clk 0:02:56.7]} 6. Nc3 {[%clk 0:02:17.3]} 6... Nf6 {[%clk
0:02:55.3]} 7. Be2 {[%clk 0:02:16.6]} 7... d6 {[%clk 0:02:55.2]} 8. O-O {[%clk
0:02:11.2]} 8... Nc6 {[%clk 0:02:55.4]} 9. Nc2 {[%clk 0:02:10.3]} 9... Be7
{[%clk 0:02:45.4]} 10. Be3 {[%clk 0:02:09.6]} 10... O-O {[%clk 0:02:41.5]} 11.
f3 {[%clk 0:02:09]} 11... Bd7 {[%clk 0:02:37.2]} 12. Qd2 {[%clk 0:02:04.1]}
12... Ne5 {[%clk 0:02:34.4]} 13. b3 {[%clk 0:02:03.9]} 13... Rac8 {[%clk
0:02:31.1]} 14. Rac1 {[%clk 0:02:02]} 14... Rfd8 {[%clk 0:02:20.1]} 15. Nd4
{[%clk 0:01:57.5]} 15... b6 {[%clk 0:01:59.8]} 16. Kh1 {[%clk 0:01:56.2]} 16...
Qb7 {[%clk 0:01:59.5]} 17. Bg1 {[%clk 0:01:52.2]} 17... Nc6 {[%clk 0:01:58.6]}
18. Nc2 {[%clk 0:01:46.5]} 18... Ne5 {[%clk 0:01:43.8]} 19. f4 {[%clk
0:01:44.7]} 19... Ng6 {[%clk 0:01:31.7]} 20. Qe3 {[%clk 0:01:42.1]} 20... b5
{[%clk 0:01:23.1]} 21. cxb5 {[%clk 0:01:39.5]} 21... axb5 {[%clk 0:01:24]} 22.
Bf3 {[%clk 0:01:37.8]} 22... Nh4 {[%clk 0:01:05.2]} 23. Nd4 {[%clk 0:01:33.3]}
23... Nxf3 {[%clk 0:01:02.8]} 24. gxf3 {[%clk 0:01:31.1]} 24... b4 {[%clk
0:01:00.3]} 25. Nce2 {[%clk 0:01:30.6]} 25... Rxc1 {[%clk 0:00:58.3]} 26. Rxc1
{[%clk 0:01:31.5]} 26... Rc8 {[%clk 0:00:58.1]} 27. Rxc8+ {[%clk 0:01:30.6]}
27... Qxc8 {[%clk 0:00:56.8]} 28. Qd2 {[%clk 0:01:29.4]} 28... Qb7 {[%clk
0:00:53]} 29. Kg2 {[%clk 0:01:28.5]} 29... d5 {[%clk 0:00:51.9]} 30. e5 {[%clk
0:01:27.3]} 30... Nh5 {[%clk 0:00:44.7]} 31. Be3 {[%clk 0:01:26.5]} 31... g6
{[%clk 0:00:44.4]} 32. Qc2 {[%clk 0:01:24.8]} 32... Ng7 {[%clk 0:00:42.2]} 33.
Bd2 {[%clk 0:01:22]} 33... Nf5 {[%clk 0:00:38.2]} 34. Nxf5 {[%clk 0:01:21.3]}
34... gxf5 {[%clk 0:00:38]} 35. Be3 {[%clk 0:01:19.5]} 35... Kf8 {[%clk
0:00:33.9]} 36. Nd4 {[%clk 0:01:19.8]} 36... Bb5 {[%clk 0:00:27.2]} 37. Qf2
{[%clk 0:01:13.7]} 37... Qa6 {[%clk 0:00:25]} 38. Qc2 {[%clk 0:01:12.3]} 38...
Bd3 {[%clk 0:00:22.9]} 39. Qd2 {[%clk 0:01:09.2]} 39... Ke8 {[%clk 0:00:19.4]}
40. Nc2 {[%clk 0:00:57.8]} 40... Bf1+ {[%clk 0:00:17.1]} 41. Kf2 {[%clk
0:00:53]} 41... Bb5 {[%clk 0:00:13.3]} 42. Nxb4 {[%clk 0:00:52.4]} 42... Bxb4
{[%clk 0:00:13.5]} 43. Qxb4 {[%clk 0:00:53.3]} 43... Qxa2+ {[%clk 0:00:13.7]}
44. Kg3 {[%clk 0:00:53.8]} 44... Bf1 {[%clk 0:00:11.2]} 45. Bf2 {[%clk
0:00:53.4]} 45... Qe2 {[%clk 0:00:06.6]} 46. Qb8+ {[%clk 0:00:50.2]} 46... Kd7
{[%clk 0:00:05.5]} 47. Qb7+ {[%clk 0:00:49.9]} 47... Ke8 {[%clk 0:00:04.8]} 48.
Qc8+ {[%clk 0:00:48.9]} 1-0

[Event "*** Titled Tuesday Blitz"]
[Site "Chess.com"]
[Date "2020.04.28"]
[Round "3"]
[White "Muracle"]
[Black "LiemLe"]
[Result "0-1"]
[WhiteElo "2667"]
[BlackElo "2999"]
[TimeControl "180+1"]
[EndTime "10:29:27 PDT"]
[Termination "LiemLe won by resignation"]

1. Nf3 {[%clk 0:03:00.9]} 1... c5 {[%clk 0:02:58.1]} 2. g3 {[%clk 0:03:00.7]}
2... Nc6 {[%clk 0:02:57.9]} 3. d4 {[%clk 0:03:00.3]} 3... cxd4 {[%clk
0:02:57.6]} 4. Nxd4 {[%clk 0:03:00.3]} 4... g6 {[%clk 0:02:57.7]} 5. Bg2 {[%clk
0:02:59.6]} 5... Bg7 {[%clk 0:02:57.7]} 6. Nb3 {[%clk 0:02:57.8]} 6... d6 {[%clk
0:02:55.4]} 7. c4 {[%clk 0:02:56.9]} 7... h5 {[%clk 0:02:53.2]} 8. h3 {[%clk
0:02:52.1]} 8... Be6 {[%clk 0:02:44.9]} 9. c5 {[%clk 0:02:51.7]} 9... d5 {[%clk
0:02:40.8]} 10. Nc3 {[%clk 0:02:46.7]} 10... d4 {[%clk 0:02:22.1]} 11. Ne4
{[%clk 0:02:45.6]} 11... Nf6 {[%clk 0:02:02.8]} 12. Nxf6+ {[%clk 0:02:31.5]}
12... Bxf6 {[%clk 0:02:03.7]} 13. O-O {[%clk 0:02:31.2]} 13... Qd7 {[%clk
0:01:54.5]} 14. Kh2 {[%clk 0:02:30.2]} 14... Rd8 {[%clk 0:01:49.9]} 15. e3
{[%clk 0:01:41.3]} 15... h4 {[%clk 0:01:45.8]} 16. g4 {[%clk 0:01:29.6]} 16...
Qc7+ {[%clk 0:01:45]} 17. Kg1 {[%clk 0:01:24.1]} 17... dxe3 {[%clk 0:01:44.4]}
18. Qe2 {[%clk 0:01:13.1]} 18... Nd4 {[%clk 0:01:38.1]} 19. Nxd4 {[%clk
0:01:02.8]} 19... exf2+ {[%clk 0:01:38.3]} 20. Qxf2 {[%clk 0:01:02.7]} 20...
Bxd4 {[%clk 0:01:37.3]} 21. Be3 {[%clk 0:01:02.7]} 21... Qxc5 {[%clk 0:01:35.7]}
22. Bxd4 {[%clk 0:00:59.1]} 22... Qxd4 {[%clk 0:01:36.6]} 23. Bxb7 {[%clk
0:00:54.9]} 23... O-O {[%clk 0:01:34.2]} 24. b3 {[%clk 0:00:53.6]} 24... a5
{[%clk 0:01:02.2]} 25. Bg2 {[%clk 0:00:48.7]} 25... Kg7 {[%clk 0:00:48.8]} 26.
Rac1 {[%clk 0:00:44.3]} 26... Qxf2+ {[%clk 0:00:42.8]} 27. Rxf2 {[%clk 0:00:44]}
27... Rc8 {[%clk 0:00:35.7]} 28. Rfc2 {[%clk 0:00:43.8]} 28... Rxc2 {[%clk
0:00:27.6]} 29. Rxc2 {[%clk 0:00:44.7]} 29... Rc8 {[%clk 0:00:27.9]} 30. Re2
{[%clk 0:00:36.7]} 30... Kf6 {[%clk 0:00:26.6]} 31. Kf2 {[%clk 0:00:35.3]} 31...
Rc3 {[%clk 0:00:26.1]} 32. Rd2 {[%clk 0:00:29.8]} 32... Ke5 {[%clk 0:00:24.4]}
33. Re2+ {[%clk 0:00:25.6]} 33... Kd6 {[%clk 0:00:24.5]} 34. Rd2+ {[%clk
0:00:25.6]} 34... Kc5 {[%clk 0:00:24.8]} 35. Re2 {[%clk 0:00:26.1]} 35... a4
{[%clk 0:00:22.3]} 36. bxa4 {[%clk 0:00:21.9]} 36... Ra3 {[%clk 0:00:23.2]} 37.
Re5+ {[%clk 0:00:20.5]} 37... Kd4 {[%clk 0:00:20.6]} 38. Re4+ {[%clk 0:00:16.5]}
38... Kc5 {[%clk 0:00:20.8]} 39. g5 {[%clk 0:00:15.8]} 39... Rxa2+ {[%clk
0:00:20.4]} 40. Kf1 {[%clk 0:00:15.2]} 40... Bd5 {[%clk 0:00:18.5]} 41. Re5
{[%clk 0:00:12.7]} 41... Rxg2 {[%clk 0:00:18.1]} 42. Rxd5+ {[%clk 0:00:09.2]}
42... Kxd5 {[%clk 0:00:19]} 43. Kxg2 {[%clk 0:00:09.8]} 43... f5 {[%clk
0:00:18.6]} 0-1

[Event "*** Titled Tuesday Blitz"]
[Site "Chess.com"]
[Date "2020.04.28"]
[Round "3"]
[White "fastestmindalive"]
[Black "doons21"]
[Result "1-0"]
[WhiteElo "2831"]
[BlackElo "2619"]
[TimeControl "180+1"]
[EndTime "10:29:27 PDT"]
[Termination "fastestmindalive won on time"]

1. e4 {[%clk 0:03:00.9]} 1... e6 {[%clk 0:02:55.7]} 2. Nf3 {[%clk 0:02:59.8]}
2... d5 {[%clk 0:02:55.5]} 3. e5 {[%clk 0:02:59.7]} 3... b6 {[%clk 0:02:54.8]}
4. d4 {[%clk 0:02:53.9]} 4... c5 {[%clk 0:02:48.5]} 5. c3 {[%clk 0:02:52.5]}
5... Qd7 {[%clk 0:02:47.6]} 6. Bd3 {[%clk 0:02:49.6]} 6... Ba6 {[%clk
0:02:46.8]} 7. O-O {[%clk 0:02:49.1]} 7... Bxd3 {[%clk 0:02:37.7]} 8. Qxd3
{[%clk 0:02:50]} 8... Nc6 {[%clk 0:02:38.3]} 9. a3 {[%clk 0:02:23.2]} 9... c4
{[%clk 0:02:24.1]} 10. Qc2 {[%clk 0:02:10.7]} 10... Na5 {[%clk 0:02:23.2]} 11.
Nbd2 {[%clk 0:02:00.9]} 11... h6 {[%clk 0:02:13.6]} 12. Re1 {[%clk 0:01:59.4]}
12... g5 {[%clk 0:02:10.1]} 13. Nf1 {[%clk 0:01:51.6]} 13... Nb3 {[%clk
0:02:00.7]} 14. Rb1 {[%clk 0:01:49.2]} 14... Ne7 {[%clk 0:01:55.5]} 15. Ng3
{[%clk 0:01:45.3]} 15... O-O-O {[%clk 0:01:54.5]} 16. Nd2 {[%clk 0:01:40.9]}
16... Qa4 {[%clk 0:01:41.3]} 17. Nxb3 {[%clk 0:01:37]} 17... cxb3 {[%clk
0:01:38.4]} 18. Qe2 {[%clk 0:01:33.7]} 18... Nc6 {[%clk 0:01:37.1]} 19. Nh5
{[%clk 0:01:22.4]} 19... Be7 {[%clk 0:01:22.5]} 20. Qf3 {[%clk 0:01:19.6]} 20...
Rdf8 {[%clk 0:01:16.1]} 21. Nf6 {[%clk 0:01:18.2]} 21... Bxf6 {[%clk 0:01:16.2]}
22. Qxf6 {[%clk 0:01:19.1]} 22... Na5 {[%clk 0:00:41.8]} 23. f4 {[%clk
0:01:11.2]} 23... gxf4 {[%clk 0:00:41.8]} 24. Bxf4 {[%clk 0:01:10.8]} 24... Qd7
{[%clk 0:00:42]} 25. Rf1 {[%clk 0:01:05.1]} 25... Rfg8 {[%clk 0:00:42.9]} 26.
Bg3 {[%clk 0:01:00.8]} 26... Rh7 {[%clk 0:00:39.3]} 27. Qf3 {[%clk 0:00:57]}
27... h5 {[%clk 0:00:36.4]} 28. Qd3 {[%clk 0:00:55.5]} 28... Rhg7 {[%clk
0:00:36]} 29. Rf2 {[%clk 0:00:54]} 29... Nc4 {[%clk 0:00:34.5]} 30. Rbf1 {[%clk
0:00:53.3]} 30... Kb7 {[%clk 0:00:21.3]} 31. Bf4 {[%clk 0:00:52.3]} 31... Rg6
{[%clk 0:00:11.1]} 32. Bc1 {[%clk 0:00:51.4]} 32... R8g7 {[%clk 0:00:10.8]} 33.
Qh3 {[%clk 0:00:50.9]} 33... Ka6 {[%clk 0:00:08.8]} 34. Qxh5 {[%clk 0:00:49.7]}
34... Qb5 {[%clk 0:00:08.7]} 35. g3 {[%clk 0:00:45.8]} 35... Na5 {[%clk
0:00:09]} 36. Qe2 {[%clk 0:00:43.5]} 36... Nc4 {[%clk 0:00:08.6]} 37. Rxf7
{[%clk 0:00:43.2]} 37... Rxf7 {[%clk 0:00:08.3]} 38. Rxf7 {[%clk 0:00:44.1]}
38... Qe8 {[%clk 0:00:08.4]} 39. Rf6 {[%clk 0:00:41.1]} 39... Rg8 {[%clk
0:00:06.5]} 40. Kg2 {[%clk 0:00:35.6]} 40... Qb5 {[%clk 0:00:04.9]} 41. h4
{[%clk 0:00:34]} 41... Ka5 {[%clk 0:00:04.4]} 42. Rf7 {[%clk 0:00:33]} 42... a6
{[%clk 0:00:04.3]} 43. h5 {[%clk 0:00:31.8]} 43... Ka4 {[%clk 0:00:05.2]} 44. h6
{[%clk 0:00:31.3]} 44... Rh8 {[%clk 0:00:01.5]} 45. h7 {[%clk 0:00:31.5]} 45...
Qe8 {[%clk 0:00:02.4]} 46. Qh5 {[%clk 0:00:30.3]} 1-0

[Event "*** Titled Tuesday Blitz"]
[Site "Chess.com"]
[Date "2020.04.28"]
[Round "3"]
[White "GM_DarwinLaylo"]
[Black "FairChess_on_YouTube"]
[Result "0-1"]
[WhiteElo "2582"]
[BlackElo "3047"]
[TimeControl "180+1"]
[EndTime "10:29:28 PDT"]
[Termination "FairChess_on_YouTube won on time"]

1. c4 {[%clk 0:02:59.6]} 1... e5 {[%clk 0:02:59]} 2. Nc3 {[%clk 0:02:59.5]} 2...
d6 {[%clk 0:02:59.1]} 3. g3 {[%clk 0:02:59.6]} 3... Nc6 {[%clk 0:02:53.4]} 4.
Bg2 {[%clk 0:02:58.9]} 4... Nge7 {[%clk 0:02:52.4]} 5. d3 {[%clk 0:02:58.5]}
5... g6 {[%clk 0:02:50.2]} 6. e4 {[%clk 0:02:56.8]} 6... Bg7 {[%clk 0:02:48]} 7.
Nge2 {[%clk 0:02:56.7]} 7... h5 {[%clk 0:02:44.9]} 8. h3 {[%clk 0:02:50.2]} 8...
Be6 {[%clk 0:02:43.8]} 9. Be3 {[%clk 0:02:49.6]} 9... Nd4 {[%clk 0:02:43.1]} 10.
f4 {[%clk 0:02:44.3]} 10... Qd7 {[%clk 0:02:39.9]} 11. Qd2 {[%clk 0:02:43.1]}
11... Nec6 {[%clk 0:02:31.5]} 12. O-O-O {[%clk 0:02:32.9]} 12... O-O-O {[%clk
0:02:12.7]} 13. Kb1 {[%clk 0:02:22.5]} 13... Rhe8 {[%clk 0:02:06.3]} 14. Nd5
{[%clk 0:02:16.7]} 14... Nxe2 {[%clk 0:02:03.3]} 15. Qxe2 {[%clk 0:02:15.9]}
15... Nd4 {[%clk 0:02:03.8]} 16. Qd2 {[%clk 0:02:15.2]} 16... c6 {[%clk
0:02:03.1]} 17. Nc3 {[%clk 0:02:13.9]} 17... f5 {[%clk 0:01:58.2]} 18. b3 {[%clk
0:01:59.4]} 18... Kb8 {[%clk 0:01:54.1]} 19. h4 {[%clk 0:01:54.6]} 19... Qc7
{[%clk 0:01:52.1]} 20. Ne2 {[%clk 0:01:47.8]} 20... Nxe2 {[%clk 0:01:48.3]} 21.
Qxe2 {[%clk 0:01:47]} 21... fxe4 {[%clk 0:01:43]} 22. dxe4 {[%clk 0:01:43.1]}
22... exf4 {[%clk 0:01:43.1]} 23. gxf4 {[%clk 0:01:34.2]} 23... Bg4 {[%clk
0:01:41.8]} 24. Qd2 {[%clk 0:01:15.7]} 24... Bxd1 {[%clk 0:01:39]} 25. Rxd1
{[%clk 0:01:14.3]} 25... Qe7 {[%clk 0:01:37.4]} 26. a4 {[%clk 0:00:57.1]} 26...
a6 {[%clk 0:01:27.5]} 27. Ka2 {[%clk 0:00:54.2]} 27... Qxh4 {[%clk 0:01:25.9]}
28. Bh1 {[%clk 0:00:25.5]} 28... Qf6 {[%clk 0:01:22.7]} 29. Qg2 {[%clk
0:00:18.2]} 29... Qc3 {[%clk 0:01:18.8]} 30. Qd2 {[%clk 0:00:10]} 30... Qxd2+
{[%clk 0:01:13.6]} 31. Rxd2 {[%clk 0:00:09.2]} 31... Bh6 {[%clk 0:01:14.1]} 32.
Bf3 {[%clk 0:00:07.8]} 32... Rf8 {[%clk 0:01:12.1]} 33. Rg2 {[%clk 0:00:06.6]}
33... Bxf4 {[%clk 0:01:11.8]} 34. Bb6 {[%clk 0:00:07.1]} 34... Rd7 {[%clk
0:00:57.6]} 35. Rxg6 {[%clk 0:00:06.9]} 35... Rh7 {[%clk 0:00:57.6]} 36. Bg2
{[%clk 0:00:05.9]} 36... Be5 {[%clk 0:00:53.5]} 37. Bh3 {[%clk 0:00:04]} 37...
c5 {[%clk 0:00:50.3]} 38. b4 {[%clk 0:00:01.7]} 38... cxb4 {[%clk 0:00:46.5]}
39. Bf5 {[%clk 0:00:01.8]} 39... Rg7 {[%clk 0:00:40.8]} 0-1

[Event "*** Titled Tuesday Blitz"]
[Site "Chess.com"]
[Date "2020.04.28"]
[Round "3"]
[White "tonyq11"]
[Black "DaggiGretarsson"]
[Result "0-1"]
[WhiteElo "2226"]
[BlackElo "2445"]
[TimeControl "180+1"]
[EndTime "10:29:28 PDT"]
[Termination "DaggiGretarsson won by resignation"]

1. d4 {[%clk 0:03:00.9]} 1... g6 {[%clk 0:02:59.6]} 2. c4 {[%clk 0:03:00]} 2...
Bg7 {[%clk 0:02:59.8]} 3. Nc3 {[%clk 0:03:00.2]} 3... c5 {[%clk 0:02:59.6]} 4.
d5 {[%clk 0:02:59.7]} 4... Bxc3+ {[%clk 0:02:58.8]} 5. bxc3 {[%clk 0:03:00.6]}
5... f5 {[%clk 0:02:59]} 6. g3 {[%clk 0:02:50.9]} 6... Nf6 {[%clk 0:02:58.6]} 7.
Bg2 {[%clk 0:02:51]} 7... Qa5 {[%clk 0:02:58.5]} 8. Qc2 {[%clk 0:02:49.2]} 8...
d6 {[%clk 0:02:56.6]} 9. Bg5 {[%clk 0:02:46.7]} 9... Nbd7 {[%clk 0:02:55.7]} 10.
Nf3 {[%clk 0:02:42.4]} 10... Ne4 {[%clk 0:02:54.9]} 11. Bd2 {[%clk 0:02:39.9]}
11... Nb6 {[%clk 0:02:51.9]} 12. Qd3 {[%clk 0:02:28.8]} 12... Qa4 {[%clk
0:02:51.3]} 13. h4 {[%clk 0:02:18.9]} 13... Qxc4 {[%clk 0:02:43.2]} 14. Qxc4
{[%clk 0:02:18.3]} 14... Nxc4 {[%clk 0:02:42.7]} 15. h5 {[%clk 0:02:15.8]} 15...
Rg8 {[%clk 0:02:41.4]} 16. hxg6 {[%clk 0:02:15.2]} 16... hxg6 {[%clk 0:02:41.1]}
17. Rc1 {[%clk 0:02:07.8]} 17... b5 {[%clk 0:02:34.1]} 18. Bg5 {[%clk
0:02:05.1]} 18... a6 {[%clk 0:01:51.9]} 19. Rh7 {[%clk 0:02:03.4]} 19... Ra7
{[%clk 0:01:51.7]} 20. Bf1 {[%clk 0:01:19.7]} 20... Rc7 {[%clk 0:01:37.3]} 21.
e3 {[%clk 0:00:47.9]} 21... Ne5 {[%clk 0:01:35]} 22. Rxe7+ {[%clk 0:00:27.1]}
22... Rxe7 {[%clk 0:01:34]} 23. Bxe7 {[%clk 0:00:28]} 23... Kxe7 {[%clk
0:01:34]} 24. Nxe5 {[%clk 0:00:22]} 24... dxe5 {[%clk 0:01:30.9]} 25. c4 {[%clk
0:00:21.7]} 25... b4 {[%clk 0:01:28.7]} 26. a3 {[%clk 0:00:20.4]} 26... a5
{[%clk 0:01:17.8]} 27. axb4 {[%clk 0:00:20.5]} 27... axb4 {[%clk 0:01:17.2]} 28.
Ra1 {[%clk 0:00:20.8]} 28... Bd7 {[%clk 0:01:12.4]} 29. g4 {[%clk 0:00:17.5]}
29... Rb8 {[%clk 0:01:08.3]} 30. gxf5 {[%clk 0:00:15.1]} 30... gxf5 {[%clk
0:01:08.2]} 31. f3 {[%clk 0:00:15.6]} 31... Nc3 {[%clk 0:01:05]} 32. Kd2 {[%clk
0:00:14.6]} 32... Na4 {[%clk 0:00:56.7]} 33. Bh3 {[%clk 0:00:13.2]} 33... b3
{[%clk 0:00:55.7]} 34. e4 {[%clk 0:00:07.7]} 34... b2 {[%clk 0:00:46.5]} 35. Rb1
{[%clk 0:00:07.8]} 35... fxe4 {[%clk 0:00:36.8]} 36. Bxd7 {[%clk 0:00:07.7]}
36... Kxd7 {[%clk 0:00:35.8]} 37. fxe4 {[%clk 0:00:08.1]} 37... Rb3 {[%clk
0:00:32.5]} 38. Kc2 {[%clk 0:00:07.8]} 38... Rc3+ {[%clk 0:00:32.4]} 39. Kd2
{[%clk 0:00:08.1]} 39... Rxc4 {[%clk 0:00:32.4]} 40. Rh1 {[%clk 0:00:08.2]}
40... Rxe4 {[%clk 0:00:31.1]} 41. Rh7+ {[%clk 0:00:07.6]} 41... Kd6 {[%clk
0:00:30.7]} 42. Rh6+ {[%clk 0:00:07.5]} 42... Kxd5 {[%clk 0:00:30.6]} 43. Rg6
{[%clk 0:00:04.7]} 43... Rc4 {[%clk 0:00:27]} 44. Ra6 {[%clk 0:00:02.8]} 44...
b1=Q {[%clk 0:00:26.1]} 0-1